lending/lending_fUSD_20240705
["ID","MTS","AMOUNT","RATE_DAILY","PERIOD"]
[331217533,1720137766592,155.0,0.00011199,2]
[331217534,1720137798005,732.86,0.00010862,2]
[331217535,1720137799263,651.3672034,0.00011199,2]
[331217536,1720137938498,788.74652378,0.00011199,2]
[331217692,1720138052071,790.06697348,0.00011199,2]
[331217701,1720138057754,431.06738212,0.00011199,2]
[331217702,1720138099806,2560.07662574,0.00011199,2]
[331217703,1720138162662,10000.0,0.00031612,120]
[331217704,1720138199053,227.14852012,0.00011199,2]
[331217705,1720138220818,355.60466601,0.00011199,2]
[331217706,1720138223668,11513.0,0.00031612,120]
[331217719,1720138232316,-155.0,0.00012314,2]
[331217720,1720138232582,-155.0,0.00012314,2]
[331217721,1720138232592,-500.0,0.00012597,2]
[331217722,1720138232602,-232.46,0.00012623,2]
[331217723,1720138232611,-4.54,0.00012623,2]
[331217724,1720138232623,-245.46,0.00012623,2]
[331217725,1720138232632,-354.54,0.00012634,2]
[331217726,1720138232644,-175.92,0.00012634,2]
[331217727,1720138232653,-306.85585744,0.00012634,2]
[331217728,1720138232667,-419.0970736,0.00012634,2]
[331217729,1720138232677,-800.0,0.00012733,2]
[331217730,1720138232688,-1628.1473264,0.00012736,2]
[331217731,1720138232699,-2297.0126736,0.00012736,2]
[331217732,1720138232710,-158.91,0.00012747,2]
[331217733,1720138232725,-150.0,0.00012766,2]
[331217734,1720138232738,-250.0,0.00012786,2]
[331217735,1720138232747,-168.03,0.00012793,2]
[331217736,1720138232758,-150.99,0.00012793,2]
[331217737,1720138232767,-167.54,0.00012984,2]
[331217738,1720138232776,-1001.6,0.00012984,2]
[331217739,1720138232786,-732.86,0.00013126,2]
[331217740,1720138232795,-242.22,0.00013128,2]
[331217741,1720138232807,-254.227224,0.00013128,2]
[331217742,1720138232817,-837.68,0.000132,2]
[331217743,1720138232826,-200.0,0.00013217,2]
[331217744,1720138232835,-158.91,0.00013411,2]
[331217745,1720138232845,-470.0200924,0.00013472,2]
[331217746,1720138232857,-318.72643138,0.00013472,2]
[331217747,1720138232867,-155.0,0.00013472,2]
[331217748,1720138232877,-431.06738212,0.00013516,2]
[331217750,1720138232887,-95.2061865,0.00013574,2]
[331217753,1720138232898,-458.915499,0.00013574,2]
[331217756,1720138232910,-122.13827526,0.00013574,2]
[331217759,1720138232919,-150.0,0.00013698,2]
[331217761,1720138232929,-527.86172474,0.00013699,2]
[331217763,1720138232941,-9472.13827526,0.00013699,2]
[331217765,1720138232950,-153.56,0.00013699,2]
[331217767,1720138232959,-724.48,0.00013699,2]
[331217768,1720138232972,-3585.79,0.00013699,2]
[331217769,1720138232981,-200.0,0.00013699,2]
[331217770,1720138232990,-300.0,0.000137,5]
[331217771,1720138232999,-1055.23788443,0.00013736,2]
[331217772,1720138233008,-700.0,0.000138,5]
[331217773,1720138233017,-1000.0,0.000138,2]
[331217774,1720138233026,-2344.5762,0.000138,2]
[331217775,1720138233036,-237.91067889,0.00013849,2]
[331217776,1720138233045,-252.30329865,0.0001386,2]
[331217777,1720138233071,-115.63059135,0.0001386,2]
[331217778,1720138233080,-290.1564348,0.00013889,2]
[331217779,1720138233091,-210.7284652,0.00013889,2]
[331217780,1720138233101,-1000.0,0.000139,5]
[331217781,1720138233110,-203.51161649,0.000139,2]
[331217782,1720138233119,-569.82596788,0.000139,2]
[331217783,1720138233128,-5200.48054262,0.000139,2]
[331217784,1720138233138,-163.26289088,0.000139,2]
[331217785,1720138233147,-7500.0,0.000139,2]
[331217786,1720138233156,-172.62799502,0.000139,2]
[331217787,1720138233166,-2544.08831349,0.000139,2]
[331217788,1720138233175,-322.17160086,0.000139,2]
[331217789,1720138233185,-500.0,0.0001393,2]
[331217790,1720138233194,-500.0,0.0001393,2]
[331217791,1720138233203,-500.0,0.0001393,2]
[331217792,1720138233213,-500.0,0.0001393,2]
[331217793,1720138233225,-500.0,0.0001393,2]
[331217794,1720138233234,-367.0744,0.0001393,2]
[331217795,1720138233243,-1000.0,0.0001393,2]
[331217796,1720138233253,-1000.0,0.0001393,2]
[331217797,1720138233262,-1000.0,0.0001393,2]
[331217798,1720138233271,-1000.0,0.0001393,2]
[331217799,1720138233280,-1000.0,0.0001393,2]
[331217800,1720138233290,-1000.0,0.0001393,2]
[331217801,1720138233299,-1000.0,0.0001393,2]
[331217802,1720138233308,-1000.0,0.0001393,2]
[331217803,1720138233318,-1000.0,0.0001393,2]
[331217804,1720138233327,-1000.0,0.0001393,2]
[331217805,1720138233336,-520.2421,0.0001393,2]
[331217806,1720138233346,-354.84061564,0.00013944,2]
[331217807,1720138233355,-14434.1007257,0.00013989,2]
[331217808,1720138233364,-4563.7727163,0.00013989,2]
[331217809,1720138233374,-24848.89156841,0.00013989,2]
[331217810,1720138233386,-992.484,0.00013989,2]
[331217811,1720138233398,-70602.40708319,0.00013989,2]
[331217812,1720138233407,-196.34415124,0.0001399,2]
[331217813,1720138233416,-790.70483956,0.00013999,2]
[331217814,1720138233426,-438.16706068,0.00013999,2]
[331217815,1720138233435,-155.0,0.00013999,2]
[331217816,1720138233445,-1016652.70954487,0.00014,2]
[331217817,1720138233457,-1047.7158435,0.00014,2]
[331217818,1720138233472,-911.07205506,0.00014,2]
[331217819,1720138233491,-3003.00050743,0.00014,2]
[331217820,1720138233503,-1095.92622602,0.00014,2]
[331217821,1720138234863,647.71813835,0.00011199,2]
[331217862,1720138239297,-667.76472037,0.00013128,2]
[331217864,1720138239310,-326.82220256,0.00013128,2]
[331217867,1720138239339,-140.79640151,0.00013128,2]
[331217869,1720138239350,-2195.6635,0.00013889,2]
[331217871,1720138239360,-6921.6818,0.000139,2]
[331217873,1720138239370,-389648.87548094,0.00014,2]
[331217875,1720138239383,-1072.50233623,0.00014,2]
[331217877,1720138239396,-7015.537408,0.00014,2]
[331217880,1720138239409,-1969.22712928,0.00014,2]
[331217882,1720138239421,-4795.42269386,0.00014,2]
[331217884,1720138239434,-655.82000289,0.00014,2]
[331217886,1720138239447,-685.531391,0.00014,2]
[331217888,1720138239459,-10085.46843237,0.00014,2]
[331217890,1720138239474,-1654.53650654,0.00014,2]
[331217901,1720138239618,-769.59685023,0.00014,2]
[331217902,1720138239632,-7330.245806,0.00014,2]
[331217903,1720138239740,-4693.17062681,0.00014,2]
[331217904,1720138239778,-1534.74741234,0.00014,2]
[331217905,1720138239790,-5638.59697852,0.00014,2]
[331217906,1720138239803,-412.27445557,0.00014,2]
[331217907,1720138239815,-262.8723,0.00014,2]
[331217908,1720138239829,-250.16763393,0.00014,2]
[331217958,1720138245279,-676.25996076,0.00013574,2]
[331217960,1720138245289,-155.0,0.00013574,2]
[331217962,1720138245299,-203.11423698,0.00013999,2]
[331217965,1720138245311,-77.01670192,0.00013999,2]
[331217967,1720138245320,-187.07286197,0.00014,2]
[331218027,1720138245635,-50111.10204027,0.00014,2]
[331218030,1720138245648,-565.58774969,0.00014,2]
[331218035,1720138245848,-661.42093933,0.00014,2]
[331218036,1720138245859,-350.44603762,0.00014,2]
[331218037,1720138245871,-3210.81251125,0.00014,2]
[331218038,1720138245882,-918.99432185,0.00014,2]
[331218039,1720138245893,-770.54761456,0.00014,2]
[331218040,1720138245909,-147424.85532151,0.00014,2]
[331218041,1720138245927,-392.29490377,0.00014,2]
[331218043,1720138245960,-1350.54109536,0.00014,2]
[331218044,1720138245982,-374.91077647,0.00014,2]
[331218045,1720138246004,-539.09002834,0.00014,2]
[331218046,1720138246028,-345.15,0.00014,2]
[331218048,1720138246039,-1145.32608,0.00014,2]
[331218051,1720138246050,-2396.5336603,0.00014,2]
[331218053,1720138246061,-1093.93961604,0.00014,2]
[331218057,1720138246077,-482.00237009,0.00014,2]
[331218061,1720138246088,-576.53677303,0.00014,2]
[331218063,1720138246100,-636.87818,0.00014,2]
[331218112,1720138247222,-3686.39543761,0.00014,2]
[331218113,1720138247239,-16161.53263151,0.00014,2]
[331218114,1720138247252,-17514.65111694,0.00014,2]
[331218115,1720138247266,-18966.36521939,0.00014,2]
[331218116,1720138247280,-11526.72118168,0.00014,2]
[331218117,1720138247293,-7190.08908335,0.00014,2]
[331218118,1720138247324,-3060.0,0.00014,2]
[331218119,1720138247367,-54648.71376475,0.00014,2]
[331218120,1720138247377,-10000.0,0.00014,2]
[331218121,1720138247386,-232.46,0.00014201,2]
[331218122,1720138247396,-233.832905,0.00014247,2]
[331218123,1720138247405,-800.0,0.00014325,2]
[331218124,1720138247414,-367.93389,0.0001438,2]
[331218125,1720138247424,-167.54,0.00014607,2]
[331218126,1720138247433,-5200.48054254,0.00014717,2]
[331218127,1720138247442,-200.0,0.00014869,2]
[331218128,1720138247452,-1200.0,0.000149,5]
[331218129,1720138247461,-39251.86486939,0.00015,2]
[331218130,1720138247471,-900.0,0.00015,2]
[331218131,1720138247482,-623.10727104,0.00015,2]
[331218132,1720138247491,-491.0,0.00015,2]
[331218133,1720138247500,-367.93389,0.00015,2]
[331218134,1720138247510,-153.56,0.00015068,2]
[331218135,1720138247519,-233.832905,0.00015068,2]
[331218136,1720138247528,-1341.2625115,0.00015166,2]
[331218137,1720138247538,-1664.0,0.00015202,2]
[331218138,1720138247547,-13252.447,0.00015202,2]
[331218139,1720138247557,-1307.488,0.00015202,2]
[331218140,1720138247566,-1199.0,0.00015202,2]
[331218141,1720138247575,-291.0,0.00015202,2]
[331218142,1720138247584,-1070.0,0.00015202,2]
[331218143,1720138247594,-689.0,0.000153,2]
[331218144,1720138247603,-2965.0,0.000153,2]
[331218145,1720138247612,-732.86,0.0001539,2]
[331218146,1720138247621,-150.0,0.00015482,2]
[331218147,1720138247631,-1830.0,0.00015482,2]
[331218148,1720138247639,-360.0,0.00015482,2]
[331218149,1720138247650,-1025.0,0.00015482,2]
[331218150,1720138247660,-1275.0,0.00015482,2]
[331218151,1720138247674,-166.0,0.00015482,2]
[331218152,1720138247684,-618.0,0.00015482,2]
[331218153,1720138247694,-443.0,0.00015482,2]
[331218154,1720138247703,-464.983,0.00015482,2]
[331218155,1720138247714,-813.0,0.00015482,2]
[331218156,1720138247731,-150.0,0.00015482,2]
[331218157,1720138247740,-564.565,0.00015482,2]
[331218158,1720138247749,-283.0,0.00015482,2]
[331218159,1720138247759,-326.2,0.00015482,2]
[331218160,1720138247770,-548.0,0.00015482,2]
[331218161,1720138247779,-5200.48054254,0.00015535,2]
[331218162,1720138247789,-858.87210119,0.00015537,2]
[331218163,1720138247801,-322.27452238,0.00015537,2]
[331218164,1720138247810,-367.93389,0.0001563,2]
[331218165,1720138247819,-166.16,0.00015686,2]
[331218166,1720138247828,-232.46,0.00015778,2]
[331218167,1720138247837,-167.82,0.0001581,2]
[331218168,1720138247846,-194.04,0.00015831,2]
[331218169,1720138247855,-1105.0,0.00015867,2]
[331218170,1720138247865,-233.832905,0.0001589,2]
[331218171,1720138247876,-800.0,0.00015917,2]
[331218172,1720138247885,-167.54,0.0001623,2]
[331218173,1720138247895,-367.93389,0.0001625,2]
[331218174,1720138247906,-200.0,0.0001634,2]
[331218175,1720138247915,-5200.48054254,0.00016352,2]
[331218176,1720138247925,-153.56,0.00016438,2]
[331218177,1720138247934,-167.05,0.00016462,2]
[331218178,1720138247945,-1759.95309885,0.000165,2]
[331218179,1720138247954,-200.0,0.00016521,2]
[331218180,1720138247963,-233.832905,0.00016712,2]
[331218181,1720138247972,-1547.39498095,0.00016808,2]
[331218182,1720138247984,-367.93389,0.0001688,2]
[331218183,1720138247992,-170.03580717,0.00016969,2]
[331218184,1720138248002,-2494.54308741,0.00017,2]
[331218185,1720138248011,-5200.48054254,0.00017169,2]
[331218186,1720138248021,-6385.20519024,0.0001726,2]
[331218187,1720138248031,-232.46,0.00017356,2]
[331218188,1720138248039,-800.0,0.00017508,2]
[331218189,1720138248049,-233.832905,0.00017534,2]
[331218190,1720138248058,-732.86,0.00017654,2]
[331218191,1720138248067,-167.54,0.00017854,2]
[331218192,1720138248076,-5200.48054254,0.00017986,2]
[331218193,1720138248086,-413.1577798,0.00018,2]
[331218194,1720138248095,-370.70343884,0.00018,2]
[331218195,1720138248104,-172.627995,0.0001815,2]
[331218196,1720138248114,-200.0,0.00018174,2]
[331218197,1720138248124,-1211.385,0.00018202,2]
[331218198,1720138248133,-1199.0,0.00018202,2]
[331218199,1720138248142,-291.0,0.00018202,2]
[331218200,1720138248151,-1070.0,0.00018202,2]
[331218201,1720138248160,-233.832905,0.00018356,2]
[331218202,1720138248170,-600.0,0.00018412,2]
[331218203,1720138248179,-194.04,0.00018444,2]
[331218204,1720138248188,-1164.914,0.00018482,2]
[331218205,1720138248197,-352.974,0.00018482,2]
[331218206,1720138248206,-1275.0,0.00018482,2]
[331218207,1720138248215,-166.0,0.00018482,2]
[331218208,1720138248224,-618.0,0.00018482,2]
[331218209,1720138248238,-443.0,0.00018482,2]
[331218210,1720138248247,-449.0,0.00018482,2]
[331218211,1720138248256,-813.0,0.00018482,2]
[331218212,1720138248265,-548.0,0.00018482,2]
[331218213,1720138248274,-1667.0,0.00018579,2]
[331218214,1720138248283,-5200.48054254,0.00018804,2]
[331218215,1720138248293,-156.35,0.00018849,30]
[331218216,1720138248303,-152.73,0.000189,2]
[331218217,1720138248313,-152.73,0.000189,2]
[331218218,1720138248322,-152.73,0.000189,2]
[331218219,1720138248331,-232.46,0.00018934,2]
[331218220,1720138248341,-5000.0,0.00019,2]
[331218221,1720138248350,-1250.0,0.00019,2]
[331218222,1720138248361,-800.0,0.000191,2]
[331218223,1720138248370,-20838.0,0.00019111,2]
[331218224,1720138248380,-2000.0,0.00019178,2]
[331218225,1720138248390,-724.48,0.00019178,2]
[331218226,1720138248399,-250.0,0.00019178,2]
[331218227,1720138248407,-233.832905,0.00019178,2]
[331218228,1720138248416,-600.0,0.00019179,2]
[331218229,1720138248426,-230.65,0.0001918,2]
[331218230,1720138248435,-230.65,0.0001918,2]
[331218231,1720138248444,-230.65,0.0001918,2]
[331218232,1720138248453,-230.65,0.0001918,2]
[331218233,1720138248463,-230.65,0.0001918,2]
[331218234,1720138248472,-230.65,0.0001918,2]
[331218235,1720138248485,-230.65,0.0001918,2]
[331218236,1720138248494,-230.65,0.0001918,2]
[331218237,1720138248503,-230.65,0.0001918,2]
[331218238,1720138248512,-230.65,0.0001918,2]
[331218239,1720138248521,-150.0,0.000192,2]
[331218240,1720138248531,-150.0,0.000192,2]
[331218241,1720138248540,-367.60024622,0.00019229,2]
[331218242,1720138248549,-305.56742136,0.00019299,2]
[331218243,1720138248558,-296.94055061,0.00019352,2]
[331218244,1720138248567,-241.81370471,0.00019352,2]
[331218245,1720138248576,-167.54,0.00019477,2]
[331218246,1720138248585,-1641.0,0.000195,2]
[331218247,1720138248595,-529.72889138,0.00019565,2]
[331218248,1720138248604,-5200.48054254,0.00019621,2]
[331218249,1720138248614,-500.0,0.00019621,2]
[331218250,1720138248623,-500.0,0.00019621,2]
[331218251,1720138248633,-500.0,0.00019621,2]
[331218252,1720138248642,-500.0,0.00019621,2]
[331218253,1720138248651,-500.0,0.00019621,2]
[331218254,1720138248660,-500.0,0.00019621,2]
[331218255,1720138248671,-500.0,0.00019621,2]
[331218256,1720138248680,-500.0,0.00019621,2]
[331218257,1720138248690,-500.0,0.00019621,2]
[331218258,1720138248699,-500.0,0.00019621,2]
[331218259,1720138248708,-500.0,0.00019621,2]
[331218260,1720138248719,-500.0,0.00019621,2]
[331218261,1720138248732,-500.0,0.00019621,2]
[331218262,1720138248744,-500.0,0.00019621,2]
[331218263,1720138248753,-500.0,0.00019621,2]
[331218264,1720138248764,-500.0,0.00019621,2]
[331218265,1720138248772,-500.0,0.00019621,2]
[331218266,1720138248785,-500.0,0.00019621,2]
[331218267,1720138248794,-500.0,0.00019621,2]
[331218268,1720138248803,-500.0,0.00019621,2]
[331218269,1720138248813,-500.0,0.00019621,2]
[331218270,1720138248823,-500.0,0.00019621,2]
[331218271,1720138248832,-500.0,0.00019621,2]
[331218272,1720138248842,-500.0,0.00019621,2]
[331218273,1720138248851,-500.0,0.00019621,2]
[331218274,1720138248860,-500.0,0.00019621,2]
[331218275,1720138248869,-500.0,0.00019621,2]
[331218276,1720138248878,-500.0,0.00019621,2]
[331218277,1720138248888,-500.0,0.00019621,2]
[331218278,1720138248897,-500.0,0.00019621,2]
[331218279,1720138248906,-500.0,0.00019621,2]
[331218280,1720138248915,-500.0,0.00019621,2]
[331218281,1720138248924,-500.0,0.00019621,2]
[331218282,1720138248933,-500.0,0.00019621,2]
[331218283,1720138248942,-500.0,0.00019621,2]
[331218284,1720138248951,-500.0,0.00019621,2]
[331218285,1720138248960,-500.0,0.00019621,2]
[331218286,1720138248969,-500.0,0.00019621,2]
[331218287,1720138248980,-500.0,0.00019621,2]
[331218288,1720138248989,-500.0,0.00019621,2]
[331218289,1720138248998,-500.0,0.00019621,2]
[331218290,1720138249008,-500.0,0.00019621,2]
[331218291,1720138249017,-500.0,0.00019621,2]
[331218292,1720138249026,-500.0,0.00019621,2]
[331218293,1720138249035,-500.0,0.00019621,2]
[331218294,1720138249044,-500.0,0.00019621,2]
[331218295,1720138249053,-500.0,0.00019621,2]
[331218296,1720138249061,-500.0,0.00019621,2]
[331218297,1720138249071,-500.0,0.00019621,2]
[331218298,1720138249081,-150.0,0.000197,2]
[331218299,1720138249090,-500.0,0.0001974,2]
[331218300,1720138249099,-500.0,0.0001974,2]
[331218301,1720138249108,-500.0,0.00019741,2]
[331218302,1720138249117,-500.0,0.00019741,2]
[331218303,1720138249127,-500.0,0.00019741,2]
[331218304,1720138249136,-200.0,0.00019741,2]
[331218305,1720138249146,-250.0,0.00019748,2]
[331218306,1720138249155,-200.0,0.00019748,2]
[331218307,1720138249165,-200.0,0.00019826,2]
[331218308,1720138249175,-400.34383974,0.00019863,2]
[331218309,1720138249184,-151.0,0.00019886,2]
[331218310,1720138249194,-1000.0,0.000199,2]
[331218311,1720138249203,-22287.695939,0.000199,3]
[331218312,1720138249212,-645.98797828,0.000199,2]
[331218313,1720138249221,-732.86,0.00019918,2]
[331218314,1720138249232,-19800.83550522,0.00019964,2]
[331218315,1720138249242,-382.56322235,0.00019964,2]
[331218316,1720138249251,-2247.15697919,0.0002,2]
[331218317,1720138249260,-669.96579635,0.0002,2]
[331218318,1720138249270,-188.25830506,0.0002,2]
[331218319,1720138249280,-150.0,0.0002,2]
[331218320,1720138249289,-257.0,0.0002,2]
[331218321,1720138249298,-12768.60419298,0.0002,3]
[331218322,1720138249308,-6280.52946127,0.0002,2]
[331218323,1720138249317,-3059.57279575,0.0002,4]
[331218324,1720138249327,-1523.18908747,0.0002,2]
[331218325,1720138249336,-3173.3999109,0.0002,2]
[331218326,1720138249345,-824.91,0.0002,2]
[331218327,1720138249355,-1488.51574263,0.0002,2]
[331218328,1720138249364,-1278.53356093,0.0002,2]
[331218329,1720138249374,-233.832905,0.0002,2]
[331218330,1720138249383,-329.30914557,0.0002,2]
[331218331,1720138249392,-329.30914557,0.0002,2]
[331218332,1720138249401,-329.30914557,0.0002,2]
[331218333,1720138249410,-329.30914557,0.0002,2]
[331218334,1720138249419,-329.30914557,0.0002,2]
[331218335,1720138249428,-329.30914557,0.0002,2]
[331218336,1720138249437,-329.30914557,0.0002,2]
[331218337,1720138249447,-329.30914557,0.0002,2]
[331218338,1720138249456,-329.30914557,0.0002,2]
[331218339,1720138249466,-329.30914557,0.0002,2]
[331218340,1720138249475,-329.30914557,0.0002,2]
[331218341,1720138249488,-329.30914557,0.0002,2]
[331218342,1720138249498,-329.30914557,0.0002,2]
[331218343,1720138249507,-329.30914557,0.0002,2]
[331218344,1720138249516,-329.30914557,0.0002,2]
[331218345,1720138249525,-329.30914557,0.0002,2]
[331218346,1720138249534,-329.30914557,0.0002,2]
[331218347,1720138249543,-329.30914557,0.0002,2]
[331218348,1720138249553,-329.30914557,0.0002,2]
[331218349,1720138249562,-329.30914557,0.0002,2]
[331218350,1720138249571,-329.30914557,0.0002,2]
[331218351,1720138249773,-329.30914557,0.0002,2]
[331218352,1720138249782,-329.30914557,0.0002,2]
[331218353,1720138249792,-329.30914557,0.0002,2]
[331218354,1720138249801,-329.30914557,0.0002,2]
[331218355,1720138249812,-329.30914557,0.0002,2]
[331218356,1720138249821,-329.30914557,0.0002,2]
[331218357,1720138249831,-329.30914557,0.0002,2]
[331218358,1720138249841,-329.30914557,0.0002,2]
[331218359,1720138249851,-329.30914557,0.0002,2]
[331218360,1720138249860,-329.30914557,0.0002,2]
[331218361,1720138249869,-329.30914557,0.0002,2]
[331218362,1720138249879,-329.30914557,0.0002,2]
[331218363,1720138249889,-329.30914557,0.0002,2]
[331218364,1720138249898,-329.30914557,0.0002,2]
[331218365,1720138249908,-329.30914557,0.0002,2]
[331218366,1720138249918,-329.30914557,0.0002,2]
[331218367,1720138249927,-329.30914557,0.0002,2]
[331218368,1720138249936,-329.30914557,0.0002,2]
[331218369,1720138249945,-329.30914557,0.0002,2]
[331218370,1720138249954,-329.30914557,0.0002,2]
[331218371,1720138249964,-329.30914557,0.0002,2]
[331218372,1720138249972,-329.30914557,0.0002,2]
[331218373,1720138249983,-329.30914557,0.0002,2]
[331218374,1720138249992,-329.30914557,0.0002,2]
[331218375,1720138250001,-329.30914557,0.0002,2]
[331218376,1720138250011,-329.30914557,0.0002,2]
[331218377,1720138250020,-329.30914557,0.0002,2]
[331218378,1720138250029,-329.30914557,0.0002,2]
[331218379,1720138250040,-329.30914557,0.0002,2]
[331218380,1720138250050,-329.30914557,0.0002,2]
[331218381,1720138250059,-329.30914557,0.0002,2]
[331218382,1720138250068,-329.30914557,0.0002,2]
[331218383,1720138250078,-329.30914557,0.0002,2]
[331218384,1720138250086,-329.30914557,0.0002,2]
[331218385,1720138250095,-329.30914557,0.0002,2]
[331218386,1720138250104,-329.30914557,0.0002,2]
[331218387,1720138250113,-329.30914557,0.0002,2]
[331218388,1720138250122,-329.30914557,0.0002,2]
[331218389,1720138250131,-329.30914557,0.0002,2]
[331218390,1720138250140,-329.30914557,0.0002,2]
[331218391,1720138250149,-329.30914557,0.0002,2]
[331218392,1720138250159,-329.30914557,0.0002,2]
[331218393,1720138250168,-329.30914557,0.0002,2]
[331218394,1720138250179,-329.30914557,0.0002,2]
[331218395,1720138250188,-2016.88990514,0.000202,2]
[331218396,1720138250197,-151.0,0.00020231,2]
[331218397,1720138250207,-250.77597332,0.00020248,2]
[331218398,1720138250216,-350.0,0.00020296,2]
[331218399,1720138250224,-5200.48054254,0.00020438,2]
[331218400,1720138250235,-412.0,0.000205,2]
[331218401,1720138250244,-551.50915167,0.000205,2]
[331218402,1720138250253,-190.0,0.000205,2]
[331218403,1720138250263,-867.96193663,0.0002051,2]
[331218404,1720138250272,-171.94,0.00020548,2]
[331218405,1720138250281,-151.0,0.00020575,2]
[331218406,1720138250291,-327.32185767,0.00020657,2]
[331218407,1720138250300,-11781.41575914,0.0002068,2]
[331218408,1720138250310,-233.832905,0.00020822,2]
[331218409,1720138250319,-300.0,0.00020844,2]
[331218410,1720138250329,-10133.95348329,0.00020869,2]
[331218411,1720138250344,-268.1886347,0.00020869,2]
[331218412,1720138250356,-7.55478201,0.00020869,2]
[331218413,1720138250366,-177.97083005,0.000209,2]
[331218414,1720138250376,-151.0,0.0002092,2]
[331218415,1720138250389,-164.196938,0.00020969,2]
[331218416,1720138250399,-175.166657,0.00020969,2]
[331218417,1720138250409,-172.733294,0.00020969,2]
[331218418,1720138250418,-305.49776759,0.00020999,2]
[331218419,1720138250428,-1689.12973135,0.00021,3]
[331218420,1720138250452,-5501.10431999,0.00021,3]
[331218421,1720138250464,-13086.73452996,0.00021,3]
[331218422,1720138250473,-1300.0,0.00021,2]
[331218423,1720138250485,-716.13847324,0.00021012,2]
[331218424,1720138250495,-155.0,0.0002104,2]
[331218425,1720138250504,-155.0,0.00021066,2]
[331218426,1720138250513,-155.0,0.00021068,2]
[331218427,1720138250523,-1199.0,0.00021202,2]
[331218428,1720138250532,-291.0,0.00021202,2]
[331218429,1720138250541,-1045.91,0.00021202,2]
[331218430,1720138250551,-164.196938,0.00021231,2]
[331218431,1720138250561,-172.733294,0.00021231,2]
[331218432,1720138250570,-151.15,0.00021252,2]
[331218433,1720138250580,-5200.48054254,0.00021255,2]
[331218434,1720138250590,-151.0,0.00021265,2]
[331218435,1720138250600,-190.85379111,0.00021267,2]
[331218436,1720138250610,-645.98797826,0.00021388,2]
[331218437,1720138250620,-180.0,0.00021397,2]
[331218438,1720138250630,-1093.827,0.00021482,2]
[331218439,1720138250639,-618.0,0.00021482,2]
[331218440,1720138250649,-443.0,0.00021482,2]
[331218441,1720138250659,-449.0,0.00021482,2]
[331218442,1720138250671,-812.0,0.00021482,2]
[331218443,1720138250682,-523.142,0.00021482,2]
[331218444,1720138250692,-164.196938,0.00021493,2]
[331218445,1720138250702,-172.733294,0.00021493,2]
[331218446,1720138250712,-1400.0,0.000216,7]
[331218447,1720138250725,-151.0,0.0002161,2]
[331218448,1720138250739,-233.832905,0.00021644,2]
[331218449,1720138250753,-164.3,0.00021644,2]
[331218450,1720138250764,-305.3,0.00021644,2]
[331218451,1720138250774,-173.66,0.00021644,2]
[331218452,1720138250783,-393.25,0.00021644,2]
[331218453,1720138250793,-304.0,0.0002168,3]
[331218454,1720138250803,-200.0,0.000217,7]
[331218455,1720138250815,-1800.0,0.000217,7]
[331218456,1720138250824,-152.73,0.00021743,2]
[331218457,1720138250834,-151.0,0.00021753,2]
[331218458,1720138250844,-151.0,0.00021753,2]
[331218459,1720138250854,-151.0,0.00021753,2]
[331218460,1720138250864,-151.0,0.00021753,2]
[331218461,1720138250873,-151.0,0.00021753,2]
[331218462,1720138250883,-151.0,0.00021753,2]